bitfinex-derivatives/quotes_ETHF0:USTF0_20240924
["timestamp","ask_amount","ask_price","bid_price","bid_amount"]
[1727210807796,0.37755,2648.5,2648.4,4.54346]
[1727210808004,0.37751,2648.8,2648.4,7.9419]
[1727210808198,0.37753,2648.6,2648.5,3.2078]
[1727210808404,3.02755,2648.5,2648.4,4.1659]
[1727210812095,0.37753,2648.7,2648.4,4.1659]
[1727210812302,1.111,2648.8,2648.4,4.54345]
[1727210812498,0.37754,2648.6,2648.4,4.1659]
[1727210812692,0.37754,2648.6,2648.4,4.54346]
[1727210812898,0.37754,2648.6,2648.4,4.1659]
[1727210813500,0.37754,2648.6,2648.4,4.54346]
[1727210814002,0.37753,2648.7,2648.5,0.37754]
[1727210814396,1.59753,2648.7,2648.5,0.37754]
[1727210815203,0.37754,2648.6,2648.4,4.1659]
[1727210815402,0.37754,2648.6,2648.5,0.37755]
[1727210816404,0.37753,2648.7,2648.6,0.37753]
[1727210816600,0.37751,2648.8,2648.6,0.37752]
[1727210816806,1.111,2649.0,2648.6,0.37753]
[1727210816807,0.37753,2648.7,2648.6,0.37753]
[1727210817403,0.37753,2648.6,2648.5,0.37754]
[1727210818295,0.37753,2648.6,2648.4,7.3737]
[1727210818296,0.37753,2648.6,2648.4,4.1659]
[1727210818501,1.59753,2648.6,2648.4,4.1659]
[1727210818697,1.59753,2648.6,2648.5,0.37755]
[1727210818902,0.37755,2648.5,2648.4,4.1659]
[1727210819103,1.59755,2648.5,2648.4,4.1659]
[1727210819304,1.22,2648.6,2648.4,7.9419]
[1727210819503,1.22,2648.6,2648.4,4.1659]
[1727210819803,1.22,2648.6,2648.4,4.54345]
[1727210820009,1.59754,2648.6,2648.5,0.37755]
[1727210821699,1.22,2648.6,2648.5,0.37755]
[1727210822796,1.59753,2648.6,2648.5,0.37755]
[1727210825594,1.22,2648.6,2648.5,0.37755]
[1727210825996,1.59753,2648.6,2648.5,0.37755]
[1727210826711,1.22,2648.6,2648.5,0.37755]
[1727210827507,1.59753,2648.6,2648.5,0.37755]
[1727210827716,1.22,2648.6,2648.4,4.54345]
[1727210827902,1.22,2648.5,2648.4,4.1659]
[1727210828098,1.59755,2648.5,2648.4,4.1659]
[1727210829607,1.59755,2648.5,2648.4,4.54346]
[1727210830107,0.37754,2648.6,2648.5,0.37755]
[1727210830302,0.9437,2649.1,2648.5,6.9838]
[1727210830508,0.3775,2648.9,2648.8,0.37751]
[1727210830700,0.37746,2649.2,2648.8,3.2078]
[1727210830905,0.37746,2649.1,2648.9,2.7044]
[1727210831108,1.59746,2649.1,2648.9,3.08188]
[1727210832208,1.59746,2649.1,2649.0,0.37748]
[1727210833519,0.37745,2649.2,2649.1,0.37746]
[1727210834003,0.37745,2649.2,2649.0,0.37747]
[1727210836428,0.37744,2649.3,2649.1,3.58526]
[1727210836715,1.36505722,2649.5,2649.3,0.37743]
[1727210836910,1.36505722,2649.5,2649.4,2.7457]
[1727210837810,1.36546373,2649.5,2649.4,2.7457]
[1727210838212,0.37741,2649.5,2649.4,2.7457]
[1727210838402,1.36581303,2649.5,2649.4,2.7457]
[1727210838605,4.01581303,2649.5,2649.4,2.7457]
[1727210844020,0.37744,2649.3,2649.1,4.19596844]
[1727210844220,1.4832,2649.4,2649.1,7.00616844]
[1727210844407,0.37744,2649.3,2649.1,7.38362844]
[1727210845310,0.37744,2649.3,2649.1,6.39546]
[1727210846923,0.37745,2649.2,2649.1,2.8102]
[1727210847422,1.36585303,2649.2,2649.1,2.8102]
[1727210848120,0.37745,2649.2,2649.1,2.8102]
[1727210848318,1.36585303,2649.2,2649.1,2.8102]
[1727210849423,0.37745,2649.2,2649.1,2.8102]
[1727210849615,1.36585303,2649.2,2649.1,2.8102]
[1727210850820,1.93204303,2649.2,2648.9,1.4064]
[1727210851130,0.37748,2649.0,2648.9,2.8645]
[1727210851624,0.37748,2649.0,2648.9,6.6397]
[1727210852224,0.37747,2649.1,2648.9,7.01719]
[1727210852422,0.37748,2649.0,2648.9,2.8645]
[1727210852926,0.37748,2649.0,2648.9,6.6397]
[1727210855417,0.37748,2649.0,2648.9,2.8645]
[1727210855618,2.65,2649.0,2648.8,2.45416844]
[1727210855817,0.37752,2648.7,2648.6,3.70486844]
[1727210856127,0.37752,2648.7,2648.6,2.7167]
[1727210856330,1.59752,2648.7,2648.6,2.7167]
[1727210857627,2.8313,2648.9,2648.6,2.7167]
[1727210857829,1.59751,2648.8,2648.6,4.08239844]
[1727210858024,0.37752,2648.7,2648.6,3.70486844]
[1727210858833,0.37752,2648.7,2648.6,2.7167]
[1727210859221,0.37752,2648.7,2648.6,3.70486844]
[1727210859426,1.22,2648.8,2648.6,4.08239844]
[1727210859624,1.22,2648.8,2648.6,2.7167]
[1727210859625,0.37752,2648.7,2648.6,2.7167]
[1727210859822,0.37752,2648.7,2648.6,3.70486844]
[1727210860026,0.37752,2648.7,2648.6,2.7167]
[1727210860220,0.37752,2648.7,2648.6,3.70486844]
[1727210863336,0.37752,2648.7,2648.6,4.08239844]
[1727210863934,1.59751,2648.8,2648.7,0.37752]
[1727210864234,1.22,2648.8,2648.7,0.37752]
[1727210865331,1.5975,2648.9,2648.7,1.36567844]
[1727210865534,2.58590303,2648.9,2648.7,0.37751]
[1727210865736,1.5975,2648.9,2648.7,0.37751]
[1727210866130,1.5975,2648.9,2648.7,1.36567844]
[1727210866928,1.5975,2648.9,2648.7,0.37751]
[1727210867132,2.58590303,2648.9,2648.7,0.37751]
[1727210867432,2.58590303,2648.9,2648.7,1.36567844]
[1727210867640,1.5975,2648.9,2648.7,1.36567844]
[1727210868626,0.37751,2648.8,2648.7,1.36567844]
[1727210869139,2.58590303,2648.9,2648.7,1.36567844]
[1727210869339,2.58590303,2648.9,2648.8,0.37751]
[1727210869642,1.5975,2648.9,2648.8,0.37751]
[1727210869839,2.58590303,2648.9,2648.8,0.37751]
[1727210870142,1.5975,2648.9,2648.7,1.36567844]
[1727210870842,1.5975,2648.9,2648.7,0.98816844]
[1727210871034,2.58590303,2648.9,2648.7,0.98816844]
[1727210871242,0.37751,2648.8,2648.7,1.36567844]
[1727210872550,2.58590303,2648.9,2648.7,1.36567844]
[1727210872735,1.5975,2648.9,2648.8,0.37751]
[1727210872942,1.5975,2648.9,2648.7,1.36567844]
[1727210873445,1.5975,2648.9,2648.7,0.98816844]
[1727210873644,2.58590303,2648.9,2648.7,1.36567844]
[1727210873957,2.58590303,2648.9,2648.8,0.37751]
[1727210874147,1.5975,2648.9,2648.8,0.37751]
[1727210875247,2.58590303,2648.9,2648.8,0.37751]
[1727210875449,2.58590303,2648.9,2648.7,1.36567844]
[1727210876347,1.59751,2648.8,2648.7,0.98816844]
[1727210876647,2.54128,2648.8,2648.7,0.98816844]
[1727210876851,4.94958303,2648.8,2648.7,0.98816844]
[1727210877245,0.37752,2648.7,2648.6,3.70486844]
[1727210877445,0.37752,2648.7,2648.6,3.52753152]
[1727210877645,0.37752,2648.7,2648.6,3.90506152]
[1727210877957,0.37752,2648.7,2648.6,3.52753152]
[1727210879752,0.37752,2648.7,2648.6,2.71209844]
[1727210879948,0.37752,2648.7,2648.6,2.33456844]
[1727210880151,0.37752,2648.7,2648.6,3.52742316]
[1727210880655,0.37752,2648.7,2648.6,2.71209844]
[1727210881254,3.01741,2648.8,2648.6,3.90492484]
[1727210881465,1.93215303,2648.9,2648.8,0.37751]
[1727210881466,2.20840303,2648.9,2648.8,0.37751]
[1727210881651,2.58589303,2648.9,2648.8,0.37751]
[1727210881852,2.58589303,2648.9,2648.8,1.85531]
[1727210882358,2.20840303,2648.9,2648.8,1.85531]
[1727210882854,2.58589303,2648.9,2648.8,1.4778]
[1727210885549,0.37751,2648.8,2648.7,0.98816844]
[1727210885848,3.06871,2648.8,2648.7,0.98816844]
[1727210886048,4.05774921,2648.8,2648.7,0.98816844]
[1727210890260,3.06871,2648.8,2648.7,0.98816844]
[1727210890962,1.32133,2648.7,2648.6,0.98816844]
[1727210891152,1.32137,2648.6,2648.5,0.98982593]
[1727210891348,2.16384,2648.6,2648.4,0.98982593]
[1727210891553,3.08173478,2648.5,2648.4,0.98982593]
[1727210891955,3.08173478,2648.5,2648.2,8.89349897]
[1727210891956,0.37756,2648.4,2648.2,8.89349897]
[1727210892159,1.22,2648.3,2648.2,8.89349897]
[1727210892358,1.22,2648.3,2648.2,10.08741295]
[1727210892665,1.22,2648.3,2648.2,10.46500295]
[1727210893050,1.22,2648.3,2648.2,10.46673111]
[1727210893255,1.22,2648.3,2648.2,10.46655478]
[1727210893458,1.59758,2648.3,2648.2,10.08906431]
[1727210893757,1.22,2648.3,2648.2,10.08885366]
[1727210894557,1.59758,2648.3,2648.2,10.08885366]
[1727210894765,1.22,2648.3,2648.2,10.08885366]
[1727210895550,1.22,2648.3,2648.2,6.88105366]
[1727210896063,1.59758,2648.3,2648.2,6.88105366]
[1727210897169,7.30684418,2648.3,2648.2,5.19241476]
[1727210897362,6.31753,2648.3,2648.2,5.19241476]
[1727210897669,7.80171478,2648.3,2648.2,4.2029]
[1727210898263,6.85776478,2648.3,2648.2,4.2029]
[1727210898563,1.59758,2648.3,2648.2,4.2029]
[1727210898768,2.54153,2648.3,2648.2,4.2029]
[1727210898960,7.80171478,2648.3,2648.2,1.4659]
[1727210899161,0.37761,2648.1,2648.0,0.98951476]
[1727210899358,2.58696139,2648.1,2648.0,0.98951476]
[1727210900069,1.22,2648.1,2648.0,0.98951476]
[1727210900265,1.59761,2648.1,2648.0,0.98951476]
[1727210901569,1.22,2648.1,2647.9,0.98951476]
[1727210901876,1.22,2648.1,2647.9,1.36714476]
[1727210901877,1.59761,2648.1,2647.9,1.36714476]
[1727210902764,1.59761,2648.1,2647.9,0.98951476]
[1727210902965,1.59761,2648.1,2647.9,1.36714476]
[1727210903762,0.37762,2648.0,2647.9,0.98951476]
[1727210904065,0.37763,2647.9,2647.8,4.2996]
[1727210904264,2.58592978,2647.9,2647.8,4.2996]
[1727210904468,6.36272978,2647.9,2647.8,4.2996]
[1727210905070,1.36592978,2647.9,2647.8,4.2996]
[1727210905271,2.69763,2647.9,2647.8,4.2996]
[1727210906774,0.98829978,2648.0,2647.8,4.2996]
[1727210906982,0.98829978,2648.2,2648.1,0.37761]
[1727210907169,1.48418478,2648.4,2648.3,0.37758]
[1727210907170,0.98829978,2648.4,2648.3,0.37758]
[1727210907472,0.98829978,2648.4,2648.2,0.37758]
[1727210907473,1.22,2648.4,2648.2,0.37758]
[1727210907678,1.22,2648.4,2648.3,3.14888]
[1727210908473,1.22,2648.4,2648.3,2.7713]
[1727210908976,1.59756,2648.4,2648.3,2.7713]
[1727210909777,1.22,2648.4,2648.3,3.14888]
[1727210909965,1.86172478,2648.6,2648.5,0.37755]
[1727210909966,0.98829978,2648.6,2648.5,0.37755]
[1727210910171,4.57359978,2648.9,2648.7,0.37751]
[1727210910372,0.37749,2648.9,2648.8,2.8166]
[1727210910674,1.59749,2648.9,2648.8,2.8166]
[1727210911570,1.22,2648.9,2648.8,3.19411]
[1727210912775,1.22,2649.0,2648.9,0.37748]
[1727210913975,1.59748,2649.0,2648.8,6.40189]
[1727210914181,1.22,2648.9,2648.8,6.0244]
[1727210914570,1.22,2648.9,2648.8,10.17711]
[1727210914965,1.22,2648.9,2648.8,6.40191]
[1727210918183,1.59749,2648.9,2648.8,6.0244]
[1727210918874,1.59749,2648.9,2648.8,6.40191]
[1727210919275,1.59749,2648.9,2648.8,6.0244]
[1727210921183,0.37753,2648.6,2648.5,4.19731476]
[1727210921387,0.37753,2648.6,2648.5,3.2078]
[1727210922076,1.59753,2648.7,2648.5,3.58535]
[1727210922489,1.59753,2648.7,2648.6,2.7852]
[1727210924882,0.37756,2648.5,2648.3,0.98951476]
[1727210925083,0.37756,2648.5,2648.4,1.3702]
[1727210926079,5.37356,2648.5,2648.4,1.3702]
[1727210926383,5.37356,2648.5,2648.3,1.4511]
[1727210926384,1.59755,2648.5,2648.3,1.4511]
[1727210926583,0.37756,2648.4,2648.3,1.4511]
[1727210927079,1.59755,2648.5,2648.3,1.4511]
[1727210927284,0.98829978,2648.7,2648.3,1.4511]
[1727210927584,0.37754,2648.6,2648.4,1.83246]
[1727210927888,2.20829978,2648.8,2648.4,1.83246]
[1727210928082,0.37753,2648.6,2648.4,1.83246]
[1727210929887,0.37754,2648.6,2648.4,1.83245]
[1727210930190,1.59753,2648.7,2648.5,0.37755]
[1727210930391,0.37754,2648.6,2648.4,1.83245]
[1727210931379,0.37754,2648.6,2648.5,0.37755]
[1727210931997,0.37754,2648.6,2648.4,1.83245]
[1727210932693,0.98829978,2648.8,2648.5,6.9838]
[1727210932897,0.352,2649.5,2648.7,5.60620005]
[1727210933086,1.9676,2649.7,2649.2,0.98738232]
[1727210933087,1.83598,2649.7,2649.2,0.98738232]
[1727210933393,6.72236031,2649.9,2649.5,0.37739]
[1727210933394,1.4494,2649.9,2649.5,0.37739]
[1727210933597,1.4494,2649.9,2649.5,1.36477232]
[1727210933789,1.82675,2649.9,2649.5,0.98738232]
[1727210934393,1.82675,2649.9,2649.4,4.57260232]
[1727210935392,1.82675,2649.9,2649.4,3.58522]
[1727210936499,2.65,2649.5,2649.3,2.862]
[1727210936696,2.65,2649.5,2649.3,3.23943]
[1727210936897,2.65,2649.7,2649.3,3.23943]
[1727210937399,4.41478,2649.7,2649.3,3.23943]
[1727210937603,4.41478,2649.7,2649.3,2.862]
[1727210938394,4.41478,2649.7,2649.3,3.23943]
[1727210939201,4.41478,2649.7,2649.3,2.862]
[1727210940800,4.41478,2649.7,2649.3,3.23943]
[1727210941007,4.41478,2649.7,2649.3,2.862]
[1727210941206,4.41478,2649.7,2649.3,3.23943]
[1727210941531,4.41478,2649.7,2649.2,1.3726]
[1727210941532,0.37743,2649.4,2649.2,3.2078]
[1727210941716,5.87813,2649.3,2649.2,3.2078]
[1727210942200,9.65253,2649.3,2649.2,3.2078]
[1727210942500,0.37747,2649.1,2648.9,1.4377]
[1727210942692,9.2751,2649.3,2648.8,4.699]
[1727210942693,0.37749,2648.9,2648.8,4.699]
[1727210942903,0.37749,2648.9,2648.6,1.4671]
[1727210943095,1.75239,2648.9,2648.6,1.4671]
[1727210943302,3.02751,2648.8,2648.6,1.4671]
[1727210945105,2.65,2648.8,2648.6,1.4671]
[1727210946505,2.65,2648.8,2648.6,1.84463]
[1727210946707,2.65,2649.0,2648.7,0.37752]
[1727210946909,3.02748,2649.0,2648.7,0.37752]
[1727210947504,3.02748,2649.0,2648.6,5.05243]
[1727210947505,0.37749,2648.9,2648.6,5.05243]
[1727210948703,2.65,2649.0,2648.6,1.4671]
[1727210948704,0.37751,2648.8,2648.6,1.4671]
[1727210949105,0.3775,2648.9,2648.6,1.84463]
[1727210950302,0.37751,2648.8,2648.6,1.84463]
[1727210950702,0.3775,2648.9,2648.6,1.84463]
[1727210951822,0.37751,2648.8,2648.6,1.84463]
[1727210953314,0.3775,2648.9,2648.6,1.84463]
[1727210953812,0.37751,2648.8,2648.6,1.84463]
[1727210954014,0.3775,2648.9,2648.6,2.83201232]
[1727210954215,1.096,2649.1,2648.9,0.37748]
[1727210954411,4.45169031,2649.5,2649.0,2.7812]
[1727210954412,1.4805,2649.4,2649.0,2.7812]
[1727210954606,2.5735,2649.4,2649.1,1.3962]
[1727210954802,0.37744,2649.3,2649.1,1.77366]
[1727210955009,5.03653,2649.5,2649.1,1.77366]
[1727210955010,2.65,2649.5,2649.1,1.3962]
[1727210955218,1.093,2649.4,2649.3,0.37743]
[1727210955406,0.37744,2649.3,2649.1,1.3962]
[1727210955608,0.37744,2649.3,2649.1,1.77366]
[1727210956316,0.37745,2649.2,2649.1,1.3962]
[1727210956504,1.4157,2649.2,2649.1,1.3962]
[1727210957104,1.4157,2649.2,2649.1,1.77366]
[1727210957306,0.37745,2649.2,2649.1,1.3962]
[1727210957815,3.02744,2649.3,2649.1,1.3962]
[1727210958220,3.02744,2649.3,2649.1,1.77366]
[1727210958908,3.02744,2649.3,2649.1,1.3962]
[1727210959317,3.02744,2649.3,2649.1,1.77366]
[1727210959818,0.37745,2649.2,2649.1,1.3962]
[1727210962420,3.02745,2649.3,2649.1,1.3962]
[1727210963321,0.37745,2649.2,2649.1,1.3962]
[1727210966413,5.57891,2649.6,2649.1,1.3962]
[1727210966609,0.37741,2649.5,2649.3,0.37742]
[1727210967024,0.37741,2649.5,2649.4,1.73692]
[1727210967616,0.37741,2649.5,2649.4,1.3595]
[1727210968410,4.12041,2649.6,2649.4,1.3595]
[1727210969015,3.743,2649.6,2649.4,1.3595]
[1727210969320,4.1204,2649.6,2649.4,1.3595]
[1727210972830,0.37741,2649.5,2649.4,1.3595]
[1727210973127,4.1204,2649.6,2649.4,1.3595]
[1727210973324,3.0274,2649.6,2649.4,1.73692]
[1727210973523,4.1204,2649.6,2649.5,1.4589]
[1727210974030,3.743,2649.6,2649.5,1.4589]
[1727210974226,1.97716031,2650.0,2649.5,1.4589]
[1727210974428,1.97716031,2650.2,2649.9,0.37734]
[1727210974621,3.07016031,2650.3,2650.0,4.3371]
[1727210974820,0.37731,2650.2,2650.0,4.71443]
[1727210975126,1.97716031,2650.3,2650.0,4.3371]
[1727210975330,0.3773,2650.3,2650.0,4.3371]
[1727210975517,1.97716031,2650.4,2650.0,4.3371]
[1727210975825,0.37726,2650.5,2650.3,0.37729]
[1727210976029,2.35442031,2650.6,2650.3,0.37729]
[1727210976328,4.81526192,2650.8,2650.5,0.37726]
[1727210976329,1.97716031,2650.8,2650.5,0.37726]
[1727210976628,5.62004049,2650.9,2650.6,4.3493]
[1727210977023,5.62004049,2650.9,2650.7,0.37723]
[1727210977527,2.65,2651.2,2650.6,4.3493]
[1727210977728,0.37719,2651.1,2650.7,0.37723]
[1727210978041,2.65,2651.2,2650.7,0.37723]
[1727210978042,0.37719,2651.0,2650.7,0.37723]
[1727210980133,5.8578,2651.4,2650.9,0.3772]
[1727210980322,0.37717,2651.2,2650.6,7.5571]
[1727210980520,0.37717,2651.2,2650.9,3.585]
[1727210980724,0.37718,2651.1,2650.9,3.2078]
[1727210981228,0.37719,2651.0,2650.9,3.2078]
[1727210982735,0.37719,2651.0,2650.7,3.58503]
[1727210985531,0.37721,2650.9,2650.7,3.58503]
[1727210986232,0.3772,2651.0,2650.7,3.58502]
[1727210986430,0.37719,2651.0,2650.8,0.37721]
[1727210987631,0.37721,2650.9,2650.8,0.37721]
[1727210989046,0.37721,2650.9,2650.7,3.58503]
[1727210989539,0.94292,2651.2,2650.7,3.58503]
[1727210989540,0.94292,2651.2,2650.7,3.2078]
[1727210989848,0.94292,2651.2,2650.8,0.37721]
[1727210990538,0.3772,2651.0,2650.8,0.37721]
[1727210990742,0.94292,2651.2,2650.8,0.37721]
[1727210990743,0.37721,2650.9,2650.8,0.37721]
[1727210990945,0.3772,2651.0,2650.8,0.37721]
[1727210991243,0.37721,2650.9,2650.8,0.37721]
[1727210991949,0.3772,2651.0,2650.8,0.37721]
[1727210992445,0.37721,2650.9,2650.8,0.37721]
[1727210992638,0.37721,2650.9,2650.8,0.37722]
[1727210994054,0.37721,2650.9,2650.6,4.3493]
[1727210994346,0.37721,2650.9,2650.8,0.37722]
[1727210999446,0.94292,2651.2,2650.8,0.37721]
[1727210999750,0.94292,2651.2,2650.9,0.3772]
[1727211000050,0.3772,2651.0,2650.8,0.37721]
[1727211000349,0.37722,2650.8,2650.6,4.3493]
[1727211000543,4.6688,2651.3,2650.6,4.3493]
[1727211000544,0.37723,2650.7,2650.6,4.3493]
[1727211002647,0.37723,2650.7,2650.6,4.72655]
[1727211004345,0.94296,2651.1,2650.7,0.37723]
[1727211004746,0.37723,2650.7,2650.6,7.37654]
[1727211004954,0.37723,2650.7,2650.6,4.3493]
[1727211005246,0.37723,2650.7,2650.6,2.9182]
[1727211005646,0.37723,2650.7,2650.6,3.29545]
[1727211006553,0.37723,2650.7,2650.6,2.9182]
[1727211007246,0.37723,2650.7,2650.6,3.29545]
[1727211007937,0.94313,2650.6,2650.1,7.3458]
[1727211008143,2.8001,2650.6,2650.4,0.37727]
[1727211008441,2.8001,2650.6,2650.3,1.59728]
[1727211008442,0.37727,2650.5,2650.3,1.59728]
[1727211008950,2.8001,2650.6,2650.3,1.22]
[1727211009249,2.8001,2650.6,2650.3,1.59728]
[1727211009449,0.37727,2650.5,2650.3,1.59728]
[1727211009639,3.17736,2650.6,2650.5,0.37726]
[1727211010046,0.37723,2650.8,2650.6,0.37725]
[1727211010251,0.37723,2650.8,2650.7,2.5808]
[1727211010447,1.79392,2650.9,2650.7,2.95803]
[1727211010852,0.37722,2650.8,2650.7,2.95803]
[1727211011050,0.37722,2650.8,2650.7,2.5808]
[1727211011244,0.37722,2650.8,2650.7,1.3608]
[1727211012051,0.37721,2650.9,2650.7,1.73803]
[1727211012651,0.37722,2650.8,2650.7,1.73803]
[1727211014352,1.4672,2651.0,2650.8,0.37722]
[1727211014551,1.4672,2651.0,2650.7,1.73802]
[1727211014752,0.37721,2650.9,2650.7,1.3608]
[1727211014950,1.09,2651.0,2650.7,1.3608]
[1727211015551,0.37721,2650.9,2650.7,1.73803]
[1727211015955,0.37721,2650.9,2650.7,1.3608]
[1727211016152,0.37721,2650.9,2650.7,1.73803]
[1727211016570,0.37721,2650.9,2650.7,1.3608]
[1727211016863,0.37722,2650.9,2650.7,1.3608]
[1727211017059,0.37722,2650.8,2650.7,1.3608]
[1727211017755,7.3254,2651.1,2650.7,1.73803]
[1727211017756,0.37721,2650.9,2650.7,1.73803]
[1727211019665,0.37721,2650.9,2650.7,2.72541232]
[1727211020059,0.37721,2650.9,2650.7,1.73803]
[1727211020258,0.37722,2650.8,2650.7,1.73803]
[1727211020563,1.4715236,2650.9,2650.8,0.37722]
[1727211020767,1.8487236,2651.0,2650.7,2.34818232]
[1727211021062,1.8487236,2651.0,2650.8,1.36459232]
[1727211021261,0.37721,2650.9,2650.8,0.98738232]
[1727211021463,0.37721,2650.9,2650.8,2.68280676]
[1727211021464,1.8487336,2650.9,2650.8,2.68280676]
[1727211021761,0.37721,2650.9,2650.8,0.98940007]
[1727211022557,0.37721,2650.9,2650.8,2.19140389]
[1727211023156,0.37721,2650.9,2650.8,0.98940007]
[1727211023356,0.37721,2650.9,2650.8,2.19142776]
[1727211023557,5.09223,2650.9,2650.8,0.98940007]
[1727211023864,7.06939031,2650.9,2650.8,0.98940007]
[1727211024068,5.09223,2650.9,2650.8,0.98940007]
[1727211024458,7.06939031,2650.9,2650.8,0.98940007]
[1727211024650,5.09223,2650.9,2650.8,0.98940007]
[1727211025252,7.06939031,2650.9,2650.8,0.98940007]
[1727211025868,0.37723,2650.7,2650.6,2.36720007]
[1727211026166,2.34942611,2650.7,2650.6,1.3778]
[1727211026363,0.37725,2650.6,2650.5,0.37726]
[1727211026669,0.37725,2650.6,2650.5,2.03241347]
[1727211027071,0.37725,2650.6,2650.5,1.57937098]
[1727211027564,0.37725,2650.6,2650.5,2.56908889]
[1727211027764,2.34943611,2650.7,2650.5,6.58677889]
[1727211028071,0.37724,2650.7,2650.6,2.19179683]
[1727211028269,2.34942611,2650.8,2650.6,2.92992705]
[1727211028464,2.34942611,2650.8,2650.6,2.71752983]
[1727211028767,2.34942611,2650.8,2650.7,0.98968983]
[1727211029171,1.97219611,2650.9,2650.7,1.36691983]
[1727211029358,2.34940611,2650.9,2650.8,1.4276]
[1727211031366,0.37721,2650.9,2650.8,1.4276]
[1727211031572,2.35152976,2650.9,2650.8,1.4276]
[1727211032066,1.97431976,2651.0,2650.9,0.37721]
[1727211032261,1.97431976,2651.2,2651.0,0.37719]
[1727211032458,1.97431976,2651.2,2651.1,2.58673646]
[1727211033063,1.97431976,2651.3,2651.2,0.37716]
[1727211033264,1.97431976,2651.3,2651.2,1.79546]
[1727211033969,1.48200524,2651.3,2651.2,4.47819411]
[1727211034572,1.48200524,2651.3,2651.2,2.99712063]
[1727211034773,1.48200524,2651.3,2651.2,4.47819411]
[1727211034975,5.06694524,2651.4,2651.3,0.37715]
[1727211035268,5.06694524,2651.4,2651.3,2.20908135]
[1727211035460,6.00979524,2651.4,2651.3,0.98908135]
[1727211035665,6.00979524,2651.4,2651.2,1.4183]
[1727211035666,0.37715,2651.3,2651.2,1.4183]
[1727211035862,0.37715,2651.3,2651.2,2.61948699]
[1727211036061,0.37715,2651.3,2651.2,3.60826733]
[1727211036467,0.37715,2651.3,2651.2,3.62708034]
[1727211036975,0.37715,2651.3,2651.2,4.82751957]
[1727211037165,0.37715,2651.3,2651.2,3.62708034]
[1727211040263,0.37714,2651.4,2651.3,0.37715]
[1727211040469,0.37714,2651.4,2651.3,1.59715]
[1727211040969,0.37714,2651.4,2651.3,2.58593034]
[1727211041165,0.37714,2651.4,2651.3,1.22]
[1727211041368,1.85869319,2651.4,2651.3,1.22]
[1727211042173,0.37714,2651.4,2651.3,1.22]
[1727211042381,0.37714,2651.4,2651.3,1.59715]
[1727211044377,0.37715,2651.3,2651.2,2.6383]
[1727211047375,0.37715,2651.3,2651.2,3.9972]
[1727211047681,2.7486,2651.4,2651.2,3.9972]
[1727211047988,0.37714,2651.4,2651.3,1.22]
[1727211048779,1.85868319,2651.5,2651.3,1.59714]
[1727211048982,1.85868319,2651.5,2651.4,0.37714]
[1727211049178,1.85865319,2651.7,2651.6,0.37711]
[1727211049377,1.85864319,2651.8,2651.6,1.5971]
[1727211049573,1.85864319,2651.8,2651.7,5.3533]
[1727211050683,2.80134319,2651.8,2651.7,2.7363]
[1727211050868,0.37709,2651.8,2651.6,1.22]
[1727211051074,1.85494154,2651.8,2651.4,1.22]
[1727211051283,1.85495154,2651.7,2651.5,0.37712]
[1727211051582,1.85495154,2651.7,2651.5,1.75452]
[1727211051583,0.3771,2651.7,2651.5,1.75452]
[1727211051772,1.85494154,2651.8,2651.6,1.22]
[1727211051973,0.37708,2651.8,2651.7,1.22]
[1727211052168,0.37708,2651.8,2651.7,2.6559]
[1727211053187,1.3618126,2651.8,2651.7,2.6559]
[1727211054483,1.36157113,2651.8,2651.7,2.6559]
[1727211055883,0.98449113,2651.8,2651.7,3.03299]
[1727211056186,1.36156113,2651.9,2651.7,3.03299]
[1727211056386,0.98449113,2651.9,2651.8,0.37708]
[1727211056591,0.98449113,2652.0,2651.9,0.37706]
[1727211056886,0.98449113,2652.1,2652.0,0.37705]
[1727211057090,1.47785154,2652.2,2652.0,3.20685]
[1727211057091,1.36152113,2652.2,2652.0,3.20685]
[1727211057378,1.36152113,2652.2,2652.1,1.22]
[1727211057379,0.37703,2652.2,2652.1,1.22]
[1727211057584,0.37703,2652.2,2652.1,2.6822]
[1727211059387,0.37702,2652.2,2652.1,2.6822]
[1727211064488,1.36151113,2652.3,2652.1,2.6822]
[1727211064784,0.377,2652.4,2652.2,0.37702]
[1727211064989,0.377,2652.4,2652.3,1.22]
[1727211067479,0.377,2652.4,2652.3,1.59701]
[1727211067685,0.377,2652.4,2652.3,1.22]
[1727211068180,0.98449113,2652.7,2652.4,0.37699]
[1727211068390,0.37696,2652.6,2652.5,1.22]
[1727211068582,0.37696,2652.6,2652.5,4.0945]
[1727211070376,0.37696,2652.6,2652.5,2.8745]
[1727211080490,0.37696,2652.6,2652.5,1.4994]
[1727211080491,1.31938,2652.6,2652.5,1.4994]
[1727211080795,1.31943,2652.5,2652.4,1.499]
[1727211081101,1.82338,2652.5,2652.4,1.499]
[1727211081285,0.37698,2652.5,2652.4,1.499]
[1727211081805,4.68565154,2652.8,2652.4,5.92529]
[1727211081806,5.13465113,2652.8,2652.4,5.92529]
[1727211082103,0.37697,2652.6,2652.4,5.92529]
[1727211082398,0.37698,2652.5,2652.4,5.5483]
[1727211082597,0.37698,2652.5,2652.4,9.3187]
[1727211084587,0.37698,2652.5,2652.4,9.69569]
[1727211084990,0.37698,2652.5,2652.4,9.3187]
[1727211086105,0.37698,2652.5,2652.4,5.5483]
[1727211086297,1.31943,2652.5,2652.4,2.8983]
[1727211086599,0.37698,2652.5,2652.4,2.8983]
[1727211090206,0.37697,2652.6,2652.4,5.92529]
[1727211090697,0.37697,2652.6,2652.4,5.5483]
[1727211090900,0.37698,2652.5,2652.4,5.5483]
[1727211091211,5.57916,2652.8,2652.4,5.5483]